[Event "ISR-chT 2019"]
[Site "Israel"]
[Date "2019.01.04"]
[Round "1"]
[White "Alterman, Boris"]
[Black "Steinberg, Nitzan"]
[Result "1/2-1/2"]
[ECO "A12"]
[WhiteElo "2605"]
[BlackElo "2530"]
[Annotator "ChessBase"]
[PlyCount "114"]
[EventDate "2019.01.04"]
[EventType "team-tourn"]
[EventCountry "ISR"]
[SourceTitle "playchess.com"]
[Source "ChessBase"]
[SourceQuality "1"]
[TimeControl "40/5400+30:1800+30"]

1. Nf3 {[%emt 0:00:00]} d5 {[%emt 0:01:21]} 2. e3 {[%emt 0:01:52]} Nf6 {[%emt 0:03:31]} 3. c4 {[%emt 0:03:53]} c6 {[%emt 0:00:31]} 4. b3 {[%emt 0:04:00]} Bg4 {[%emt 0:03:23]} 5. Bb2 {[%emt 0:00:51]} Nbd7 {[%emt 0:00:37]} 6. Be2 {[%emt 0:01:52]} e6 {[%emt 0:02:11]} 7. Nc3 {[%emt 0:09:12]} Bd6 {[%emt 0:02:19]} 8. cxd5 exd5 {[%emt 0:01:47]} 9. Nd4 {[%emt 0:04:51]} Nc5 {[%emt 0:04:37]} 10. Qc2 {[%emt 0:09:42]} Bxe2 11. Ncxe2 {[%emt 0:01:03]} g6 {[%emt 0:12:28]} 12. O-O {[%emt 0:05:51]} Qe7 {[%emt 0:03:22]} 13. Nf3 {[%emt 0:04:12]} O-O {[%emt 0:08:33]} 14. Bxf6 {[%emt 0:03:32]} Qxf6 {[%emt 0:00:12]} 15. b4 {[%emt 0:00:14]} Nd7 {[%emt 0:05:37]} 16. b5 {[%emt 0:06:15]} c5 {[%emt 0:03:19]} 17. Nc3 {[%emt 0:04:25]} Ne5 {[%emt 0:05:15]} 18. Nxe5 {[%emt 0:03:37]} Bxe5 {[%emt 0:00:12]} 19. Rac1 {[%emt 0:05:15]} Rad8 {[%emt 0:02:09]} 20. Qb3 {[%emt 0:02:32]} Rfe8 {[%emt 0:05:29]} 21. g3 {[%emt 0:06:10]} c4 {[%emt 0:06:33]} 22. Qc2 {[%emt 0:02:40]} d4 {[%emt 0:03:19]} 23. Nd1 {[%emt 0:04:12]} Rc8 {[%emt 0:10:37]} 24. exd4 {[%emt 0:00:44]} Bxd4 {[%emt 0:00:04]} 25. Ne3 {[%emt 0:00:12]} Rc5 {[%emt 0:05:45]} 26. Qa4 {[%emt 0:02:36]} c3 {[%emt 0:06:21]} 27. dxc3 {[%emt 0:01:06]} Bxe3 {[%emt 0:00:08]} 28. fxe3 {[%emt 0:00:14]} Qe5 {[%emt 0:01:45]} 29. Qd4 {[%emt 0:02:34]} Qxe3+ {[%emt 0:01:03]} 30. Qxe3 {[%emt 0:00:38]} Rxe3 {[%emt 0:00:01]} 31. c4 {[%emt 0:01:27]} Ra3 {[%emt 0:00:48]} 32. Rf2 {[%emt 0:01:38]} Ra4 {[%emt 0:00:26]} 33. Rfc2 {[%emt 0:00:15]} Kg7 {[%emt 0:00:45]} 34. Kg2 {[%emt 0:00:19]} f5 {[%emt 0:00:20]} 35. Rd1 {[%emt 0:02:24]} Rcxc4 {[%emt 0:00:30]} 36. Rd7+ {[%emt 0:00:30]} Kh6 {[%emt 0:00:30]} 37. Rxc4 {[%emt 0:00:30]} Rxc4 {[%emt 0:00:30]} 38. Rxb7 {[%emt 0:00:30]} Rc2+ {[%emt 0:00:09]} 39. Kg1 {[%emt 0:00:00]} Rxa2 {[%emt 0:00:05]} 40. b6 {[%emt 0:00:00]} axb6 {[%emt 0:00:30]} 41. Rxb6 {[%emt 0:30:21]} Kg5 {[%emt 0:30:30]} 42. Rb4 {[%emt 0:00:30]} Re2 {[%emt 0:00:30]} 43. Ra4 {[%emt 0:00:30]} Re4 {[%emt 0:00:30]} 44. Ra2 {[%emt 0:00:30]} h5 {[%emt 0:00:30]} 45. Kg2 {[%emt 0:00:30]} h4 {[%emt 0:00:30]} 46. Kh3 {[%emt 0:00:30]} Kh5 {[%emt 0:00:30]} 47. Ra8 {[%emt 0:00:30]} g5 {[%emt 0:00:30]} 48. Rh8+ {[%emt 0:00:30]} Kg6 {[%emt 0:00:30]} 49. gxh4 {[%emt 0:00:30]} g4+ {[%emt 0:00:30]} 50. Kg3 {[%emt 0:00:30]} Re3+ {[%emt 0:00:00]} 51. Kf4 {[%emt 0:00:00]} Re4+ {[%emt 0:00:00]} 52. Kg3 {[%emt 0:00:00]} Kf6 {[%emt 0:00:00]} 53. Rf8+ {[%emt 0:00:00]} Ke5 {[%emt 0:00:00]} 54. Re8+ {[%emt 0:00:00]} Kd4 {[%emt 0:00:00]} 55. Rd8+ {[%emt 0:00:00]} Ke5 {[%emt 0:00:00]} 56. Re8+ {[%emt 0:00:00]} Kd4 {[%emt 0:00:00]} 57. Rd8+ {[%emt 0:00:00]} Ke5 {[%emt 0:00:00]} 1/2-1/2

[Event "ISR-chT 2019"]
[Site "Israel"]
[Date "2019.01.04"]
[Round "1"]
[White "Roiz, Michael"]
[Black "Galburd, Yan"]
[Result "1/2-1/2"]
[ECO "D02"]
[WhiteElo "2605"]
[BlackElo "2397"]
[Annotator "ChessBase"]
[PlyCount "117"]
[EventDate "2019.01.04"]
[EventType "team-tourn"]
[EventCountry "ISR"]
[SourceTitle "playchess.com"]
[Source "ChessBase"]
[SourceQuality "1"]
[TimeControl "40/5400+30:1800+30"]

1. Nf3 {[%emt 0:00:00]} d5 {[%emt 0:00:00]} 2. g3 {[%emt 0:00:00]} Nc6 {[%emt 0:00:38]} 3. d4 {[%emt 0:01:43]} Bf5 {[%emt 0:00:16]} 4. Bg2 {[%emt 0:08:19]} Nb4 {[%emt 0:00:32]} 5. Na3 {[%emt 0:00:08]} e6 {[%emt 0:00:42]} 6. O-O {[%emt 0:03:08]} Nf6 {[%emt 0:06:14]} 7. Nh4 {[%emt 0:07:22]} Be4 {[%emt 0:06:39]} 8. f3 {[%emt 0:01:02]} Bg6 {[%emt 0:00:09]} 9. c3 {[%emt 0:05:22]} Na6 {[%emt 0:05:09]} 10. Qb3 {[%emt 0:07:00]} Rb8 {[%emt 0:04:15]} 11. e4 {[%emt 1:01:26]} Be7 {[%emt 1:10:56]} 12. Nxg6 {[%emt 0:00:00]} hxg6 {[%emt 0:00:00]} 13. Bf4 {[%emt 0:01:00]} Nh5 {[%emt 0:01:00]} 14. Be3 {[%emt 0:00:00]} Nf6 {[%emt 0:00:30]} 15. Bf4 {[%emt 0:00:00]} Nh5 {[%emt 0:00:00]} 16. Bd2 {[%emt 0:00:00]} Nf6 {[%emt 0:01:00]} 17. Rad1 {[%emt 0:02:00]} b5 {[%emt 0:00:30]} 18. exd5 {[%emt 0:00:00]} exd5 {[%emt 0:00:00]} 19. Rfe1 {[%emt 0:00:00]} c6 {[%emt 0:00:00]} 20. Nc2 {[%emt 0:00:00]} O-O {[%emt 0:00:00]} 21. a4 {[%emt 0:00:00]} Nc7 {[%emt 0:00:00]} 22. axb5 {[%emt 0:00:00]} Nxb5 {[%emt 0:00:00]} 23. Qa4 {[%emt 0:00:00]} Qd7 {[%emt 0:00:00]} 24. Bf1 {[%emt 0:00:00]} a5 {[%emt 0:00:00]} 25. Kg2 {[%emt 0:00:00]} Rfe8 {[%emt 0:00:00]} 26. b3 {[%emt 0:00:00]} Ra8 {[%emt 0:00:00]} 27. Re2 {[%emt 0:00:00]} Reb8 {[%emt 0:00:00]} 28. Ne1 {[%emt 0:00:00]} Bd6 {[%emt 0:00:00]} 29. Nd3 {[%emt 0:00:00]} Qc7 {[%emt 0:00:18]} 30. Ree1 {[%emt 0:01:05]} Qb7 {[%emt 0:02:36]} 31. Ra1 {[%emt 0:04:12]} Nd7 {[%emt 0:00:35]} 32. Qa2 {[%emt 0:00:12]} Nc7 {[%emt 0:00:34]} 33. Rab1 {[%emt 0:00:37]} Nb5 {[%emt 0:01:56]} 34. Rb2 {[%emt 0:00:51]} Qa7 {[%emt 0:00:39]} 35. Rc2 {[%emt 0:00:59]} Qb7 {[%emt 0:01:23]} 36. Rb2 {[%emt 0:00:20]} Qa7 {[%emt 0:00:15]} 37. Rd1 {[%emt 0:00:13]} a4 {[%emt 0:01:00]} 38. bxa4 {[%emt 0:00:30]} Qxa4 {[%emt 0:00:03]} 39. Qxa4 {[%emt 0:00:08]} Rxa4 {[%emt 0:00:01]} 40. Nf4 {[%emt 0:01:24]} Na3 {[%emt 0:01:30]} 41. Rxb8+ {[%emt 0:30:25]} Nxb8 {[%emt 0:02:02]} 42. Ra1 {[%emt 0:00:00]} Nd7 {[%emt 0:02:58]} 43. Nd3 {[%emt 0:00:00]} Ra7 {[%emt 0:01:24]} 44. Bf4 {[%emt 0:00:00]} Bxf4 {[%emt 0:06:11]} 45. Nxf4 {[%emt 0:00:00]} Nb5 {[%emt 0:00:10]} 46. Rxa7 {[%emt 0:00:00]} Nxa7 {[%emt 0:00:02]} 47. h4 {[%emt 0:00:00]} Kf8 {[%emt 0:01:59]} 48. Kf2 {[%emt 0:00:00]} Ke7 {[%emt 0:00:26]} 49. Ke3 {[%emt 0:00:00]} Kd6 {[%emt 0:00:33]} 50. c4 {[%emt 0:00:00]} dxc4 {[%emt 0:04:38]} 51. Bxc4 {[%emt 0:00:00]} Ke7 {[%emt 0:00:32]} 52. Nd3 {[%emt 0:00:00]} Nb6 {[%emt 0:05:11]} 53. Bb3 {[%emt 0:00:00]} Nd5+ {[%emt 0:00:16]} 54. Ke4 {[%emt 0:00:00]} Nc3+ {[%emt 0:00:15]} 55. Ke3 {[%emt 0:00:00]} Nd5+ {[%emt 0:00:09]} 56. Bxd5 {[%emt 0:00:00]} cxd5 {[%emt 0:00:06]} 57. Ne5 {[%emt 0:00:00]} Nb5 {[%emt 0:00:44]} 58. Kd3 {[%emt 0:00:00]} Ke6 {[%emt 0:00:23]} 59. g4 {[%emt 0:10:04]} 1/2-1/2

[Event "ISR-chT 2019"]
[Site "Israel"]
[Date "2019.01.04"]
[Round "1"]
[White "Zubov, Alexander"]
[Black "Zilberman, Yaacov"]
[Result "1-0"]
[ECO "B03"]
[WhiteElo "2598"]
[BlackElo "2334"]
[Annotator "ChessBase"]
[PlyCount "99"]
[EventDate "2019.01.04"]
[EventType "team-tourn"]
[EventCountry "ISR"]
[SourceTitle "playchess.com"]
[Source "ChessBase"]
[SourceQuality "1"]
[TimeControl "40/5400+30:1800+30"]

1. e4 {[%emt 0:00:00]} Nf6 {[%emt 0:00:06]} 2. e5 {[%emt 0:00:10]} Nd5 {[%emt 0:00:05]} 3. d4 {[%emt 0:01:40]} d6 {[%emt 0:00:12]} 4. Bc4 {[%emt 0:05:59]} Nb6 {[%emt 0:04:55]} 5. Bb3 {[%emt 0:00:12]} dxe5 {[%emt 0:00:08]} 6. Qf3 {[%emt 0:06:03]} e6 {[%emt 0:01:22]} 7. dxe5 {[%emt 0:00:03]} Nc6 {[%emt 0:02:30]} 8. Qg3 {[%emt 0:00:09]} Nd4 {[%emt 0:08:46]} 9. Nf3 {[%emt 0:13:35]} Nf5 {[%emt 0:07:57]} 10. Qh3 {[%emt 0:12:14]} Bd7 {[%emt 0:03:32]} 11. O-O {[%emt 0:02:07]} Bc6 {[%emt 0:02:25]} 12. Nc3 {[%emt 0:08:13]} Be7 {[%emt 0:20:09]} 13. Rd1 {[%emt 0:05:07]} Nd7 {[%emt 0:09:59]} 14. g4 {[%emt 0:09:56]} Nh4 {[%emt 0:03:45]} 15. Nd4 {[%emt 0:00:15]} Bg2 {[%emt 0:00:24]} 16. Qg3 {[%emt 0:01:42]} c5 {[%emt 0:02:55]} 17. Nxe6 {[%emt 0:05:45]} fxe6 {[%emt 0:00:14]} 18. Bxe6 {[%emt 0:00:45]} Nxe5 {[%emt 0:00:19]} 19. Rxd8+ {[%emt 0:00:14]} Rxd8 {[%emt 0:00:08]} 20. f4 {[%emt 0:06:39]} Nef3+ {[%emt 0:00:57]} 21. Kf2 {[%emt 0:00:07]} Nd4 {[%emt 0:03:29]} 22. Bc4 {[%emt 0:06:17]} Nxc2 {[%emt 0:04:54]} 23. g5 {[%emt 0:04:36]} Nxa1 {[%emt 0:03:11]} 24. Qxh4 {[%emt 0:00:06]} Bc6 {[%emt 0:00:41]} 25. Qh5+ {[%emt 0:01:14]} g6 {[%emt 0:03:17]} 26. Qe2 {[%emt 0:00:07]} Rf8 {[%emt 0:02:22]} 27. Nb5 {[%emt 0:02:22]} a6 {[%emt 0:04:56]} 28. Nc7+ {[%emt 0:00:19]} Kd7 {[%emt 0:00:07]} 29. Ne6 {[%emt 0:00:29]} Bd6 {[%emt 0:03:17]} 30. Qd1 {[%emt 0:05:12]} Rde8 {[%emt 0:03:56]} 31. Nxf8+ {[%emt 0:00:36]} Rxf8 {[%emt 0:00:06]} 32. Be3 {[%emt 0:00:19]} Kc7 {[%emt 0:00:44]} 33. Be2 {[%emt 0:02:21]} Bxf4 {[%emt 0:00:33]} 34. Bxf4+ {[%emt 0:00:07]} Rxf4+ {[%emt 0:00:12]} 35. Kg3 {[%emt 0:00:12]} Re4 {[%emt 0:01:50]} 36. Bg4 {[%emt 0:00:07]} Re3+ {[%emt 0:01:26]} 37. Kf2 {[%emt 0:00:51]} Re4 {[%emt 0:00:16]} 38. h3 {[%emt 0:00:08]} Re5 {[%emt 0:00:21]} 39. Qxa1 {[%emt 0:00:25]} Rxg5 {[%emt 0:00:15]} 40. Qe1 {[%emt 0:01:02]} Kb6 {[%emt 0:00:33]} 41. Qe3 {[%emt 0:30:36]} Rd5 {[%emt 0:30:53]} 42. b4 {[%emt 0:00:08]} h5 {[%emt 0:02:21]} 43. Be6 {[%emt 0:00:15]} Rd1 {[%emt 0:00:00]} 44. Qxc5+ {[%emt 0:00:00]} Kc7 {[%emt 0:00:00]} 45. a4 {[%emt 0:00:00]} Rd6 {[%emt 0:00:00]} 46. Bb3 {[%emt 0:00:00]} Rf6+ {[%emt 0:00:00]} 47. Ke1 {[%emt 0:00:00]} Rf5 {[%emt 0:00:00]} 48. Qe7+ {[%emt 0:00:00]} Kb6 {[%emt 0:00:00]} 49. Bc2 {[%emt 0:00:00]} Rf3 {[%emt 0:00:00]} 50. Qc5+ {[%emt 0:00:00]} 1-0

[Event "ISR-chT 2019"]
[Site "Israel"]
[Date "2019.01.04"]
[Round "1"]
[White "Golod, Vitali"]
[Black "Mindlin, Alon"]
[Result "0-1"]
[ECO "E11"]
[WhiteElo "2532"]
[BlackElo "2462"]
[Annotator "ChessBase"]
[PlyCount "122"]
[EventDate "2019.01.04"]
[EventType "team-tourn"]
[EventCountry "ISR"]
[SourceTitle "playchess.com"]
[Source "ChessBase"]
[SourceQuality "1"]
[TimeControl "40/5400+30:1800+30"]

1. d4 {[%emt 0:00:00]} Nf6 {[%emt 0:00:00]} 2. c4 {[%emt 0:00:12]} e6 {[%emt 0:00:01]} 3. Nf3 {[%emt 0:01:41]} Bb4+ {[%emt 0:00:23]} 4. Bd2 {[%emt 0:04:17]} Qe7 {[%emt 0:01:11]} 5. g3 {[%emt 0:00:12]} Nc6 {[%emt 0:01:28]} 6. Bg2 {[%emt 0:03:34]} Bxd2+ {[%emt 0:02:33]} 7. Nbxd2 {[%emt 0:04:47]} d6 {[%emt 0:01:13]} 8. e4 {[%emt 0:01:59]} O-O {[%emt 0:03:33]} 9. O-O {[%emt 0:01:44]} e5 {[%emt 0:00:04]} 10. d5 {[%emt 0:00:33]} Nb8 {[%emt 0:00:05]} 11. Ne1 {[%emt 0:01:00]} a5 {[%emt 0:05:46]} 12. Nd3 {[%emt 0:00:56]} Na6 {[%emt 0:03:10]} 13. a3 {[%emt 0:08:51]} Bg4 {[%emt 0:25:37]} 14. Qe1 {[%emt 0:08:16]} c6 {[%emt 0:07:38]} 15. f4 {[%emt 0:08:35]} cxd5 {[%emt 0:09:24]} 16. cxd5 {[%emt 0:01:44]} exf4 {[%emt 0:12:08]} 17. gxf4 {[%emt 0:01:05]} Rae8 {[%emt 0:00:23]} 18. Kh1 {[%emt 0:09:41]} Qd7 {[%emt 0:08:35]} 19. Qg3 {[%emt 0:09:19]} Be2 {[%emt 0:01:27]} 20. Rf2 {[%emt 0:04:28]} Bxd3 {[%emt 0:03:36]} 21. Qxd3 {[%emt 0:00:13]} Nc5 {[%emt 0:00:09]} 22. Qd4 {[%emt 0:01:54]} Ng4 {[%emt 0:01:51]} 23. Rff1 {[%emt 0:03:27]} f5 {[%emt 0:01:01]} 24. e5 {[%emt 0:02:06]} Qb5 {[%emt 0:04:18]} 25. e6 {[%emt 0:02:03]} Rf6 {[%emt 0:01:00]} 26. h3 {[%emt 0:03:37]} Rh6 {[%emt 0:00:08]} 27. Kg1 {[%emt 0:00:44]} Nf6 {[%emt 0:00:21]} 28. b4 {[%emt 0:01:01]} Nce4 {[%emt 0:00:51]} 29. Nxe4 {[%emt 0:01:15]} fxe4 {[%emt 0:00:38]} 30. f5 {[%emt 0:01:39]} Rh5 {[%emt 0:00:18]} 31. a4 {[%emt 0:04:14]} Qxb4 {[%emt 0:01:05]} 32. Qxb4 {[%emt 0:00:50]} axb4 {[%emt 0:00:01]} 33. Rad1 {[%emt 0:02:28]} Rg5 {[%emt 0:02:53]} 34. Rd4 {[%emt 0:01:50]} Rc8 {[%emt 0:00:03]} 35. Rf2 {[%emt 0:01:25]} b3 {[%emt 0:00:16]} 36. Kh2 {[%emt 0:01:48]} e3 {[%emt 0:01:38]} 37. Re2 {[%emt 0:02:06]} Rc3 {[%emt 0:00:31]} 38. Rb4 {[%emt 0:01:53]} h5 {[%emt 0:00:13]} 39. Rxb7 {[%emt 0:00:49]} Rc2 {[%emt 0:00:25]} 40. Bf3 {[%emt 0:01:10]} Rxf5 {[%emt 0:00:20]} 41. Rxb3 {[%emt 0:05:27]} Rxe2+ {[%emt 0:01:14]} 42. Bxe2 {[%emt 0:01:16]} Rf2+ {[%emt 0:00:47]} 43. Kg3 {[%emt 0:06:13]} h4+ {[%emt 0:11:34]} 44. Kxh4 {[%emt 0:00:24]} Rxe2 {[%emt 0:00:04]} 45. Kg3 {[%emt 0:08:54]} Nxd5 {[%emt 0:01:23]} 46. Rb8+ {[%emt 0:00:13]} Kh7 {[%emt 0:00:06]} 47. Rd8 {[%emt 0:00:24]} Ne7 {[%emt 0:07:45]} 48. Kf3 {[%emt 0:03:22]} Rf2+ {[%emt 0:00:10]} 49. Kxe3 {[%emt 0:00:17]} Rf6 {[%emt 0:00:03]} 50. Re8 {[%emt 0:02:37]} Rxe6+ {[%emt 0:00:13]} 51. Kd3 {[%emt 0:02:16]} Kg6 {[%emt 0:00:39]} 52. a5 {[%emt 0:00:12]} Kf7 {[%emt 0:00:05]} 53. a6 {[%emt 0:00:31]} Kxe8 {[%emt 0:00:57]} 54. a7 {[%emt 0:00:21]} Re3+ {[%emt 0:00:02]} 55. Kxe3 {[%emt 0:00:06]} Nd5+ {[%emt 0:00:04]} 56. Ke4 {[%emt 0:01:21]} Nc7 {[%emt 0:00:11]} 57. h4 {[%emt 0:01:05]} g6 {[%emt 0:01:36]} 58. Kf4 {[%emt 0:01:50]} Kf7 {[%emt 0:00:10]} 59. Kg5 {[%emt 0:00:26]} d5 {[%emt 0:00:06]} 60. Kg4 {[%emt 0:00:15]} Ke6 {[%emt 0:00:35]} 61. Kg5 {[%emt 0:00:10]} d4 {[%emt 0:00:16]} 0-1

[Event "ISR-chT 2019"]
[Site "Israel"]
[Date "2019.01.04"]
[Round "1"]
[White "Rozentalis, Eduardas"]
[Black "Kogan, Arthur"]
[Result "1/2-1/2"]
[ECO "C54"]
[WhiteElo "2526"]
[BlackElo "2547"]
[Annotator "ChessBase"]
[PlyCount "26"]
[EventDate "2019.01.04"]
[EventType "team-tourn"]
[EventCountry "ISR"]
[SourceTitle "playchess.com"]
[Source "ChessBase"]
[SourceQuality "1"]
[TimeControl "40/5400+30:1800+30"]

1. e4 {[%emt 0:00:00]} e5 {[%emt 0:00:00]} 2. Nf3 {[%emt 0:00:00]} Nc6 {[%emt 0:00:00]} 3. Bc4 {[%emt 0:00:03]} Bc5 {[%emt 0:00:03]} 4. d3 {[%emt 0:00:54]} Nf6 {[%emt 0:00:20]} 5. c3 {[%emt 0:00:10]} d6 {[%emt 0:01:15]} 6. b4 {[%emt 0:05:08]} Bb6 {[%emt 0:00:28]} 7. a4 {[%emt 0:00:06]} a5 {[%emt 0:00:44]} 8. b5 {[%emt 0:01:19]} Ne7 {[%emt 0:00:08]} 9. h3 {[%emt 0:01:33]} h6 {[%emt 0:04:51]} 10. Bb3 {[%emt 0:12:39]} Ng6 {[%emt 0:02:04]} 11. O-O {[%emt 0:01:40]} O-O {[%emt 0:00:27]} 12. Re1 {[%emt 0:00:54]} Re8 {[%emt 0:03:41]} 13. Ra2 {[%emt 0:07:59]} c6 {[%emt 0:09:28]} 1/2-1/2

[Event "ISR-chT 2019"]
[Site "Israel"]
[Date "2019.01.04"]
[Round "1"]
[White "Bar, Roman"]
[Black "Ben Artzi, Ido"]
[Result "1-0"]
[ECO "C84"]
[WhiteElo "2484"]
[BlackElo "2382"]
[Annotator "RC"]
[PlyCount "87"]
[EventDate "2019.01.04"]
[EventType "team-tourn"]
[EventCountry "ISR"]
[SourceTitle "playchess.com"]
[Source "ChessBase"]
[SourceQuality "1"]
[TimeControl "40/5400+30:1800+30"]

1. e4 {[%emt 0:00:00]} e5 {[%emt 0:00:00]} 2. Nf3 {[%emt 0:00:00]} Nc6 {[%emt 0:00:00]} 3. Bb5 {[%emt 0:00:00]} a6 {[%emt 0:00:00]} 4. Ba4 {[%emt 0:00:09]} Nf6 {[%emt 0:00:00]} 5. O-O {[%emt 0:00:18]} Be7 {[%emt 0:00:06]} 6. d3 {[%emt 0:01:02]} b5 {[%emt 0:00:31]} 7. Bb3 {[%emt 0:00:07]} d6 {[%emt 0:00:05]} 8. a3 {[%emt 0:00:57]} O-O {[%emt 0:00:16]} 9. Nc3 {[%emt 0:00:11]} Bg4 {[%emt 0:00:06]} 10. Be3 {[%emt 0:00:47]} Nd4 {[%emt 0:00:05]} 11. Bxd4 {[%emt 0:00:39]} exd4 {[%emt 0:00:01]} 12. Nd5 {[%emt 0:00:24]} Nxd5 {[%emt 0:00:05]} 13. Bxd5 {[%emt 0:02:28]} Rc8 {[%emt 0:00:13]} 14. Bc6 {[%emt 0:01:14]} Bf6 {[%emt 0:04:00]} 15. a4 {[%emt 0:06:00]} Bd7 {[%emt 0:02:33]} 16. Bxd7 {[%emt 0:09:18]} Qxd7 {[%emt 0:00:02]} 17. Qd2 {[%emt 0:00:12]} bxa4 {[%emt 0:32:28]} 18. Qa5 {[%emt 0:03:16]} Qb5 {[%emt 0:10:24]} 19. Rxa4 {[%emt 0:09:03]} Qxb2 {[%emt 0:02:15]} 20. Ra2 {[%emt 0:00:51]} Qc3 {[%emt 0:01:09]} 21. Qxc3 {[%emt 0:08:03]} dxc3 {[%emt 0:00:05]} 22. Rxa6 {[%emt 0:00:21]} Ra8 {[%emt 0:03:27]} 23. Rc6 {[%emt 0:06:31]} Ra2 {[%emt 0:02:20]} 24. Rc1 {[%emt 0:00:55]} Rb8 {[%emt 0:04:35]} 25. g4 {[%emt 0:12:56]} h6 {[%emt 0:03:39]} 26. h4 {[%emt 0:02:01]} g5 {[%emt 0:06:51]} 27. hxg5 {[%emt 0:00:39]} hxg5 {[%emt 0:00:12]} 28. d4 {[%emt 0:01:00]} Re8 {[%emt 0:06:04]} 29. e5 {[%emt 0:01:47]} Bg7 {[%emt 0:02:24]} 30. exd6 {[%emt 0:08:53]} cxd6 {[%emt 0:00:06]} 31. Rxc3 {[%emt 0:01:33]} f5 {[%emt 0:03:16]} 32. gxf5 {[%emt 0:04:07]} g4 {[%emt 0:09:20]} 33. Ng5 {[%emt 0:00:36]} Bxd4 {[%emt 0:03:30]} 34. Rc4 {[%emt 0:00:49]} Bc5 {[%emt 0:02:20]} 35. Rxg4 {[%emt 0:10:41]} Re2 {[%emt 0:00:23]} 36. Rf4 {[%emt 0:04:57]} Ra3 {[%emt 0:04:33]} 37. Kf1 {[%emt 0:01:49]} Re5 {[%emt 0:00:14]} 38. Rb1 {[%emt 0:01:55]} Ra7 {[%emt 0:00:04]} 39. Rb8+ {[%emt 0:01:05]} Kg7 {[%emt 0:00:01]} 40. f6+ {[%emt 0:01:10]} Kh6 {[%emt 0:00:02]} 41. Nf3 {[%emt 0:03:26]} Ra1+ {[%emt 0:00:48]} 42. Kg2 {[%emt 0:00:10]} Re2 {[%emt 0:00:12]} 43. f7 {[%emt 0:02:58]} d5 {[%emt 0:00:11]} 44. Rh8+ {[%emt 0:00:47]} 1-0

[Event "ISR-chT 2019"]
[Site "Israel"]
[Date "2019.01.04"]
[Round "1"]
[White "Khmelniker, Ilya"]
[Black "Shvidler, Eliahu"]
[Result "1-0"]
[ECO "A37"]
[WhiteElo "2483"]
[BlackElo "2357"]
[Annotator "ChessBase"]
[PlyCount "63"]
[EventDate "2019.01.04"]
[EventType "team-tourn"]
[EventCountry "ISR"]
[SourceTitle "playchess.com"]
[Source "ChessBase"]
[SourceQuality "1"]
[TimeControl "40/5400+30:1800+30"]

1. c4 {[%emt 0:00:08]} c5 {[%emt 0:03:50]} 2. Nf3 {[%emt 0:00:33]} Nc6 {[%emt 0:00:42]} 3. Nc3 {[%emt 0:00:18]} g6 {[%emt 0:00:26]} 4. g3 {[%emt 0:00:12]} Bg7 {[%emt 0:00:12]} 5. Bg2 {[%emt 0:00:03]} e6 {[%emt 0:01:09]} 6. d4 {[%emt 0:03:53]} cxd4 {[%emt 0:02:21]} 7. Nb5 {[%emt 0:00:31]} d5 {[%emt 0:00:20]} 8. cxd5 {[%emt 0:00:04]} exd5 {[%emt 0:00:22]} 9. O-O {[%emt 0:00:07]} Nge7 {[%emt 0:02:29]} 10. Nbxd4 {[%emt 0:00:30]} O-O {[%emt 0:00:15]} 11. Be3 {[%emt 0:00:10]} Nf5 {[%emt 0:00:21]} 12. Nxf5 {[%emt 0:00:48]} Bxf5 {[%emt 0:00:30]} 13. Qd2 {[%emt 0:00:08]} Qf6 {[%emt 0:03:24]} 14. Rad1 {[%emt 0:09:22]} Qxb2 {[%emt 0:13:31]} 15. Qxb2 {[%emt 0:00:05]} Bxb2 {[%emt 0:00:03]} 16. Rxd5 {[%emt 0:00:34]} a6 {[%emt 0:01:24]} 17. Ng5 {[%emt 0:12:56]} Rfe8 {[%emt 0:06:54]} 18. h3 {[%emt 0:11:44]} h5 {[%emt 0:08:22]} 19. g4 {[%emt 0:11:37]} hxg4 {[%emt 0:07:15]} 20. hxg4 {[%emt 0:00:05]} Bxg4 {[%emt 0:08:53]} 21. Rb1 {[%emt 0:00:10]} Bg7 {[%emt 0:01:02]} 22. Rxb7 {[%emt 0:05:17]} Ne7 {[%emt 0:01:46]} 23. Rd2 {[%emt 0:09:30]} Rac8 {[%emt 0:03:52]} 24. Bf4 {[%emt 0:04:06]} Bc3 {[%emt 0:21:50]} 25. Ne4 {[%emt 0:16:52]} Bf5 {[%emt 0:04:14]} 26. Nxc3 {[%emt 0:02:52]} Rxc3 {[%emt 0:00:08]} 27. Be5 {[%emt 0:05:43]} Rc1+ {[%emt 0:01:06]} 28. Kh2 {[%emt 0:00:03]} Nc6 {[%emt 0:00:54]} 29. Bf6 {[%emt 0:02:15]} Ne5 {[%emt 0:00:20]} 30. f3 {[%emt 0:01:21]} Rc4 {[%emt 0:02:33]} 31. Re7 {[%emt 0:03:33]} Rc1 {[%emt 0:05:02]} 32. Rb7 {[%emt 0:00:30]} 1-0

[Event "ISR-chT 2019"]
[Site "Israel"]
[Date "2019.01.04"]
[Round "1"]
[White "Caspi, Israel"]
[Black "Poleg, Dan"]
[Result "1-0"]
[ECO "C47"]
[WhiteElo "2455"]
[BlackElo "2276"]
[Annotator "ChessBase"]
[PlyCount "43"]
[EventDate "2019.01.04"]
[EventType "team-tourn"]
[EventCountry "ISR"]
[SourceTitle "playchess.com"]
[Source "ChessBase"]
[SourceQuality "1"]
[TimeControl "40/5400+30:1800+30"]

1. e4 {[%emt 0:00:00]} e5 {[%emt 0:00:00]} 2. Nf3 {[%emt 0:00:13]} Nc6 {[%emt 0:00:00]} 3. d4 {[%emt 0:00:11]} exd4 {[%emt 0:00:00]} 4. Nxd4 {[%emt 0:00:03]} Nf6 {[%emt 0:00:12]} 5. Nc3 {[%emt 0:00:07]} Bb4 {[%emt 0:00:33]} 6. Nxc6 {[%emt 0:00:06]} bxc6 {[%emt 0:00:04]} 7. Bd3 {[%emt 0:00:06]} d5 {[%emt 0:00:35]} 8. exd5 {[%emt 0:00:09]} cxd5 {[%emt 0:00:08]} 9. O-O {[%emt 0:00:06]} O-O {[%emt 0:00:10]} 10. h3 {[%emt 0:00:05]} c6 {[%emt 0:02:26]} 11. Qf3 {[%emt 0:00:20]} Bd6 {[%emt 0:00:35]} 12. Bf4 {[%emt 0:00:51]} Be6 {[%emt 0:06:37]} 13. Rad1 {[%emt 0:06:34]} Bxf4 {[%emt 0:20:54]} 14. Qxf4 {[%emt 0:00:11]} Qb8 {[%emt 0:00:04]} 15. Qf3 {[%emt 0:23:53]} Qc7 {[%emt 0:11:25]} 16. b3 {[%emt 0:02:34]} Rad8 {[%emt 0:01:01]} 17. Rfe1 {[%emt 0:01:15]} c5 {[%emt 0:05:54]} 18. Ne2 {[%emt 0:04:30]} d4 {[%emt 0:08:25]} 19. Nf4 {[%emt 0:04:55]} Bc8 {[%emt 0:01:11]} 20. Re2 {[%emt 0:24:39]} Rfe8 {[%emt 0:17:04]} 21. Rde1 {[%emt 0:00:22]} Qd7 {[%emt 0:00:54]} 22. Nh5 {[%emt 0:01:30]} 1-0